Cogmind - Beta 15 @@@ ROGUE MODE // 2025.07.03 @ 03:50:57 Player: Florist Result: Destroyed self with Rocket Launcher Performance ------------- Evolutions (0) 0 Regions Visited (2) 400 Robots Destroyed (29) 145 Value Destroyed (435) 435 Prototype IDs (0) 0 Alien Tech Used (0) 0 Bonus (0) 0 TOTAL SCORE: 980 Bonus ------- None Cogmind --------- Core Integrity 0/250 Matter 233/300 Energy 100/100 System Corruption 0% Temperature Cool (0) Movement Core (350) Ox6 Location -10/Mines Parts ------- > --- POWER (1) -------- (None) > --- PROPULSION (2) --- (None) > --- UTILITY (2) ------ Large Storage Unit > --- WEAPON (2) ------- (None) > --- INVENTORY (15) --- Light Treads Light Treads Light Treads Flight Unit Flight Unit Flight Unit Flight Unit Heat Sink Small Storage Unit Visual Processing Unit Medium Laser Medium Laser Beam Rifle Beam Rifle Peak State ------------ > --- POWER ------------ Light Nuclear Core > --- PROPULSION ------- Light Treads Light Treads > --- UTILITY ---------- Large Storage Unit Seismic Detector > --- WEAPON ----------- Beam Rifle Beam Rifle > --- INVENTORY -------- Light Treads Light Treads Light Treads Flight Unit Flight Unit Flight Unit Flight Unit Heat Sink Small Storage Unit Visual Processing Unit Medium Laser Medium Laser Rocket Launcher Rocket Launcher [Rating: 12] Favorites ----------- Power Light Ion Engine Engine Light Ion Engine Power Core Light Nuclear Core Propulsion Light Treads Treads Light Treads Utility Seismic Detector Device Seismic Detector Storage Large Storage Unit Weapon Beam Rifle Energy Gun Beam Rifle Launcher Rocket Launcher Build | -11 -10 -10 ------- Run | Yrd Mat Min Slots Evolved . | . . . Power . | . . . Propulsion . | . . . Utility . | . . . Weapon . | . . . Parts Attached 17 | 7 6 4 Power 3 | 1 1 1 Engine 2 | 1 1 . Core 1 | . . 1 Reactor . | . . . Propulsion 3 | 2 . 1 Treads 3 | 2 . 1 Leg . | . . . Wheel . | . . . Hover . | . . . Flight . | . . . Utility 3 | 2 1 . Device 1 | 1 . . Storage 2 | 1 1 . Processor . | . . . Hackware . | . . . Protection . | . . . Artifact . | . . . Weapon 8 | 2 4 2 Energy Gun 6 | 2 4 . Energy Cannon . | . . . Ballistic Gun . | . . . Ballistic Cannon . | . . . Launcher 2 | . . 2 Special Weapon . | . . . Impact Weapon . | . . . Slashing Weapon . | . . . Piercing Weapon . | . . . Special Melee Weapon . | . . . Unidentified Prototypes . | . . . Parts Lost 9 | . 2 7 Power 2 | . 1 1 Propulsion 3 | . . 3 Utility 1 | . . 1 Weapon 3 | . 1 2 Highest Loss Streak 6 | . 1 6 To Critical Strikes . | . . . Average Backups 11 | 1 11 14 Power . | . . . Propulsion 4 | 1 4 7 Utility 2 | . 2 3 Weapon 4 | . 4 4 Tool/Special . | . . . Unused Backups 18 | . 6 12 Power . | . . . Propulsion 9 | . 2 7 Utility 2 | . . 2 Weapon 7 | . 4 3 Tool/Special . | . . . Average Slot Usage (%) 99 | . 99 97 Engine 13 | . 13 11 Treads 27 | . 28 26 Device 13 | . 14 13 Storage 14 | . 14 14 Energy Gun 27 | . 27 27 Peak Build Rating 12 | 7 10 12 Average Rating 9 | 5 9 10 On Entrance 5 | . 7 10 Naked Turns . | . . . Heaviest Build 32 | 15 32 32 Greatest Support 40 | 40 40 40 Greatest Overweight (x) 1 | . . 1 Average Overweight (x) . | . . . Largest Inventory Capacity 15 | 8 15 15 Average Capacity 13 | 7 13 15 Most Carried 15 | 3 15 15 Average Carried 11 | 1 11 14 Final Capacity 15 | 8 15 15 Final Carried 14 | 3 14 14 Class Distribution -------------------- 100% | Mutant Dominant Class ---------------- Mutant | -10/Materials Mutant | -10/Mines Resources | -11 -10 -10 ----------- Run | Yrd Mat Min Matter Collected 350 | 196 134 20 Remotely . | . . . Salvage Created 859 | 226 479 154 Parts 64 | 19 34 11 Haulers Intercepted 2 | . 2 . Recyclers Shooed . | . . . Parts Field Recycled . | . . . Retrieved Matter . | . . . Parts Self-Destructed . | . . . Prevented . | . . . Kills | -11 -10 -10 ------- Run | Yrd Mat Min Combat Hostiles Destroyed 15 | . 10 5 Guns 14 | . 10 4 Classes Destroyed 8 | 3 5 . Worker 3 | 2 . 1 Tunneler 4 | 4 . . Hauler 2 | . 2 . Recycler 1 | 1 . . Operator 1 | . 1 . Watcher 3 | . 3 . Swarmer 9 | . 6 3 Grunt 6 | . 4 2 Best Kill Streak 7 | 7 3 3 Combat Bots Only 3 | . 3 3 Max Kills in Single Turn 2 | 1 2 1 Gunslinging 1 | . 1 . Exploded . | . . . Melee . | . . . Uniques/NPCs Destroyed . | . . . Combat | -11 -10 -10 -------- Run | Yrd Mat Min Hostile Shots Fired 83 | . 44 39 Missed 15 | . 8 7 Hits 68 | . 36 32 Projectile 68 | . 36 32 AOE 10 | . . 10 Critical Strikes 2 | . 1 1 Damage Taken 1134 | . 332 802 Core 251 | . 46 205 Absorbed by Shields . | . . . Core Remaining (%) 100 | 100 . . Volleys Fired 66 | 12 38 16 Largest 2 | 2 2 2 Hottest 112 | 80 112 112 Shots Fired 130 | 24 75 31 Gun 123 | 24 75 24 Cannon . | . . . Launcher 7 | . . 7 Special . | . . . Kinetic . | . . . Thermal 99 | . 75 24 Explosive 7 | . . 7 Electromagnetic 24 | 24 . . Robot Hit Streak 6 | 4 6 6 Robot Miss Streak 5 | 2 4 5 Penetration Max . | . . . Secondary Targets 1 | . 1 . Max Gunslinging Chain 1 | . 1 . Shots Hit Robots 70 | 14 37 19 Core Hits 43 | 8 21 14 Critical Kills . | . . . Critical Parts Destroyed . | . . . Critical Strikes 6 | . 4 2 Burn 6 | . 4 2 Melee Attacks . | . . . Impact . | . . . Slashing . | . . . Piercing . | . . . Sneak Attacks . | . . . Combat Hostiles . | . . . Follow-up Attacks . | . . . Damage Inflicted 1048 | 203 538 307 Guns 932 | 203 538 191 Cannons . | . . . Explosions 116 | . . 116 Melee . | . . . Ramming . | . . . Kinetic . | . . . Thermal 729 | . 538 191 Explosive 116 | . . 116 Electromagnetic 203 | 203 . . Impact . | . . . Slashing . | . . . Piercing . | . . . Highest Corruption . | . . . Average Corruption . | . . . Corruption Purged . | . . . Corruption Blocked . | . . . Overload Shots . | . . . Overflow Damage 41 | . . 41 Projectiles . | . . . Explosions 41 | . . 41 Melee . | . . . Knockbacks . | . . . Impact . | . . . Kinetic . | . . . Secondary . | . . . Self-Inflicted Damage 153 | . . 153 Shots 6 | . . 6 Rammed . | . . . Targets Rammed . | . . . Kicked . | . . . Crushed . | . . . Highest Temperature 357 | 90 318 357 Average Temperature 113 | 37 110 172 Received Heat Transfer 141 | . 90 51 Effects 4 | . 4 . Interference 3 | . 3 . Short Circuit 1 | . 1 . Siege Activations . | . . . Martial Activations . | . . . Shielding Activations . | . . . Robots Disrupted . | . . . Combat Hostiles . | . . . Robots Corrupted . | . . . Combat Hostiles . | . . . Parts Fried . | . . . Impact Corruptions . | . . . Robots Melted 1 | . . 1 Combat Hostiles 1 | . . 1 Parts Melted 5 | . 4 1 Heat Transferred 2294 | . 1665 629 Parts Sabotaged . | . . . Parts Stolen . | . . . Parts Stripped . | . . . Power Chain Reactions . | . . . Alert | -11 -10 -10 ------- Run | Yrd Mat Min Maximum Alert Level . | . . . Low Security (%) 100 | 100 100 100 Level 1 . | . . . Level 2 . | . . . Level 3 . | . . . Level 4 . | . . . Level 5 . | . . . High Security . | . . . Max Security . | . . . Peak Influence 85 | 15 85 70 Initial 6 | . 6 . Average 18 | 3 18 26 Influence Increases 531 | 35 340 156 Destroy 0b10 Robot/C 300 | . 200 100 Destroy 0b10 Robot/NC 70 | 35 30 5 Destroy Leader 80 | . 60 20 Successful Hack 17 | . 17 . Disable Machine 15 | . . 15 Destroy Structure 19 | . 3 16 Lose Combat Pursuer 30 | . 30 . Influence Decreases 531 | 25 350 156 Entered New Map 4 | . 4 . Time Decay 471 | 25 346 100 Lost Part 56 | . . 56 Squads Dispatched 2 | . 2 . Investigation 1 | . 1 . Extermination . | . . . Reinforcement 1 | . 1 . Assault . | . . . Garrison . | . . . Intercept . | . . . Searches Triggered . | . . . Construction Impeded . | . . . Haulers Reinforced . | . . . Active Scanning Responses . | . . . Cargo Convoy Interrupts . | . . . Stealth | -11 -10 -10 --------- Run | Yrd Mat Min Distress Signals 1 | . 1 . Communications Jammed . | . . . Distress Signals . | . . . Times Spotted 25 | . 18 7 Peak Tracking Total 3 | . 3 3 Tactical Retreats 1 | . 1 . Traps | -11 -10 -10 ------- Run | Yrd Mat Min Traps Triggered 1 | . 1 . Indirectly . | . . . Trap Hack Attempts . | . . . Triggered . | . . . Disarmed . | . . . Reprogrammed . | . . . Reused . | . . . Traps Extracted . | . . . Installed . | . . . Triggered . | . . . Machines | -11 -10 -10 ---------- Run | Yrd Mat Min Machines Disabled 1 | . . 1 Max in Single Turn 1 | . . 1 Machines Repaired . | . . . Machines Dismantled . | . . . Machines Sabotaged . | . . . Overloaded Fab Kills . | . . . Hacking | -11 -10 -10 --------- Run | Yrd Mat Min Machines Accessed 7 | . 7 . Terminals 7 | . 7 . Fabricators . | . . . Repair Stations . | . . . Recycling Units . | . . . Scanalyzers . | . . . Garrison Access . | . . . Total Hacks 13 | . 13 . Successful 6 | . 6 . Failed 7 | . 7 . Catastrophic . | . . . Database Lockouts . | . . . Manual 13 | . 13 . Terminals 13 | . 13 . Fabricators . | . . . Repair Stations . | . . . Recycling Units . | . . . Scanalyzers . | . . . Garrison Access . | . . . Terminal Hacks . | . . . Fabricator Hacks . | . . . Repair Station Hacks . | . . . Recycling Unit Hacks . | . . . Scanalyzer . | . . . Garrison Access Hacks . | . . . Unauthorized Hacks 6 | . 6 . Terminals 6 | . 6 . Botnet 1 | . 1 . Skim 5 | . 5 . Fabricators . | . . . Repair Stations . | . . . Recycling Units . | . . . Scanalyzers . | . . . Garrison Access . | . . . Data Cores Recovered . | . . . Used . | . . . Hacking Detections 3 | . 3 . Full Trace Events . | . . . Feedback Events . | . . . Feedback Blocked . | . . . Robot Schematics Acquired . | . . . Robots Built . | . . . Authchips . | . . . Time . | . . . Total Robot Build Rating . | . . . Part Schematics Acquired . | . . . Parts Built . | . . . Authchips . | . . . Time . | . . . Total Part Build Rating . | . . . Parts Repaired . | . . . Time . | . . . Parts Recycled . | . . . Recycled Matter . | . . . Retrieved Matter . | . . . Retrieved Components . | . . . Parts Scanalyzed . | . . . Part Schematics Acquired . | . . . Parts Damaged . | . . . Bothacking | -11 -10 -10 ------------ Run | Yrd Mat Min Used RIF Installer . | . . . Robots Hacked . | . . . Non-combat . | . . . Combat . | . . . Robot Hacks Applied . | . . . Relay Couplers Released . | . . . Fabnet Peak Effective % . | . . . Robots Rewired . | . . . Allies Hacked . | . . . Hacks Repelled . | . . . Allies | -11 -10 -10 -------- Run | Yrd Mat Min Total Allies . | . . . Largest Group . | . . . Highest-Rated Group . | . . . Highest-Rated Ally . | . . . Total Orders . | . . . Ally Attacks . | . . . Total Damage . | . . . Kills . | . . . Allies Corrupted . | . . . Allies Melted . | . . . Intel | -11 -10 -10 ------- Run | Yrd Mat Min Active Infowar (turns) 1754 | 38 1450 266 Seismic 1754 | 38 1450 266 Robot Analysis Total . | . . . Derelict Logs Recovered 1 | . . 1 Drone Launches . | . . . Drone Recoveries . | . . . Exploration | -11 -10 -10 ------------- Run | Yrd Mat Min Turns Passed 1868 | 124 1468 276 Spaces Moved 871 | 50 715 106 Core 4 | 4 . . Treads 867 | 46 715 106 Legs . | . . . Wheels . | . . . Hover . | . . . Flight . | . . . Fastest Speed 50 | 50 160 160 Average Speed 160 | 151 160 165 Slowest Speed 240 | 160 160 240 Overloaded Moves . | . . . Propulsion Burnouts . | . . . Robots Hopped . | . . . Potential Cave-ins . | . . . Cave-ins Triggered . | . . . Exploration Rate (%) 39 | 5 97 17 Regions Visited 2 Branch Regions 1 Pre-discovered Areas 1 | . 1 . Known Exits Taken . | . . . Unknown Exits Taken 2 | 1 1 . Scrap Searched . | . . . Spaces Dug . | . . . Terrain Destroyed 17 | . . 17 Melee . | . . . Projectile . | . . . AOE 17 | . . 17 Terrain Rammed . | . . . Walls Destroyed . | . . . Machines Disabled . | . . . Actions | -11 -10 -10 --------- Run | Yrd Mat Min Total 1215 | 71 967 177 Wait 228 | . 181 47 Move 869 | 49 714 106 Hop . | . . . Pick Up 24 | 3 19 2 Fast Attach 10 | 7 2 1 Attach 4 | . 3 1 Detach . | . . . Swap 3 | . 1 2 Drop 11 | . 9 2 Fire 66 | 12 38 16 Melee . | . . . Ram . | . . . Kick . | . . . Crush . | . . . Escape Stasis . | . . . Rewire . | . . . Trap . | . . . Miscellaneous . | . . . Route ------- -11/Scrapyard -10/Materials (discovered 5 exits: *Mat x3 / [*Min] / Sub) -10/Mines (discovered 3 exits: *Mat x2 / Sub) History --------- Turn | Location | Event 3 | -11/Scrapyard | Discovered new exit (range 15) 125 | -11/Scrapyard | Entered Materials 300 | -10/Materials | Build established: Mutant 394 | -10/Materials | Discovered new exit (range 5) 719 | -10/Materials | Discovered new exit (range 14) 924 | -10/Materials | Discovered new exit (range 9) 1185 | -10/Materials | Discovered new exit (range 8) 1215 | -10/Materials | Learned location of 2 exits from Subcaves 1283 | -10/Materials | Learned location of 2 exits from Subcaves 1390 | -10/Materials | Identified exit to Subcaves 1456 | -10/Materials | Loaded intel: 5 trap records 1471 | -10/Materials | Learned location of 2 exits from Mines 1495 | -10/Materials | Learned Storage trap positions 1593 | -10/Materials | Entered Mines 1594 | -10/Mines | Identified exit to Materials 1824 | -10/Mines | Learned 4 Materials zone layouts 1838 | -10/Mines | Assembled infested the area 1864 | -10/Mines | Core integrity fell below 50% 1866 | -10/Mines | Core integrity fell below 20% 1869 | -10/Mines | Destroyed self with Rocket Launcher Last Messages --------------- 01838_ ALERT: Infestation in the mines, dispatching Demolisher response squad. 01839_ K-01 Serf cleans the Matter Pump. 01844_ K-01 Serf collects debris. 01851_ Acquired 10 matter. 01856_ C-30 ARC bursts open, deploying its payload. 01856_ D-53 Grenadier unfolds itself. 01859_ Seismic Detector destroyed. 01860_ Lgt. Nuclear Core destroyed. 01860_ Destroyed Lgt. Nuclear Core. 01860_ K-01 Serf destroyed. 01860_ Matter Pump disabled. 01861_ The unstable cave ceiling collapses. 01863_ Lgt. Treads destroyed. 01865_ D-53 Grenadier destroyed. 01866_ Rocket Launcher destroyed. 01866_ Destroyed Rocket Launcher. 01869_ Lgt. Treads destroyed. 01869_ Rocket Launcher destroyed. 01869_ Destroyed Rocket Launcher. Map ----- +----------------------------------------------------+ | ???????????????????????????????????????????????? | | ???????????????????????????????????????????????? | | ???????????????????????????????????????????????? | | ???????????????????????????????????????????????? | | ???????????????????????????????????????????????? | | ???????????????????????????????????????????????? | | ???????????????????????????????????????????????? | | ????????????######?????????????????????????????? | | ???????????## ##????????????????????????????? | | ???????????# % #????????????????????????????? | | ???????????# #???????????????????= ??????? | | ???????????## % #???????###??????? ???????? | | ????????????##*% #??????## ##????? ?????????? | | ?????????????### #####?## #??? ???????????? | | ???????????????# # # ### ?????????????? | | ?????###???????# ???????????????? | | ????## ##?##### ?????????????????? | | ????# ### # " #??????????????????? | | ????# "" ##??????????????????? | | ????# "" ##?????????????????? | | ????# ### #?????????????????? | | ????## ##?## #??????????????????? | | ?????########???# d ##?????????????????? | | ????????????????## #?????????????????? | | ?????????????????## #??????????????????? | | ??????????????????# @ #??????????????????? | | ????###???????????# #??????????????????? | | ???## #??????????# #??????????????????? | | ???# #?????????# ##??????????????????? | | ???# ##??????## ##???????????????????? | | ???# ##????## #####????????????????????? | | ???# #????# ##????????????????????????? | | ????# ##??## #?????????????????????????? | | ????### < #### ##????????????????????????? | | ??????## ## #????????????????????????? | | ??????## ##???????????????????????? | | ??????# ## ##??????????????????????? | | ??????# #### #??????????????????????? | | ??????# #####??## #?????????????????????? | | ??????# ##???????# #?????????????????????? | | ??????## ##????????# #?????????????????????? | | ???????###??????????## ##?????????????????????? | | ??????????????????????###??????????????????????? | | ???????????????????????????????????????????????? | | ???????????????????????????????????????????????? | | | | | | | | | | | +----------------------------------------------------+ Best States ------------- Heat Dissipation 25 Energy Generation 14 Energy Capacity 250 Matter Stores 300 Matter Capacity 300 Sight Range 16 Terrain Scan Density 10 Evasion (%) 40 Recoil Reduction 2 Item Schematics ----------------- None Robot Schematics ------------------ None Fabricated ------------ Nothing Repaired ---------- Nothing Alien Tech Used ----------------- None Achievements -------------- None Challenges ------------ None Game ------ Seed SurveybotScatterChainsword Manual? 0 Play Time 00:09:29 Cumulative 165.7 hours Start 2025.07.03 @ 03:42:19 End 2025.07.03 @ 03:50:57 Sessions 1 Manual Loads 0 Difficulty Rogue Special Mode None Game No. 154 Rogue 154 Adventurer 0 Explorer 0 Win Type - Total 9 Types 5/0/2/2/0/0/0/0/0/0 Lore% 69 Gallery% 64 Achievement% 61 Wizard Run 0 Options --------- Layout 1 ASCII 0 Keyboard 0 Movement Numpad Keybinds 0 Fullscreen 1 Font 32/SmallcapsGlow Map View 77x35 Zoom Use 0% Tactical HUD 1 Map Filters NONE Filters NONE Steam 1 RUN: fd2845fb-156d-45c4-b4cd-da344a1ef142